[Event "Titled Tuesday Blitz October 31 Early 2023"]
[White "Henriquez Villagra, Cristobal"]
[Black "Gubajdullin, Alexei"]
[WhiteFideId "3409350"]
[BlackFideId "4141202"]
[WhiteElo "2893"]
[BlackElo "2724"]
[Result "1-0"]
[Round "8"]
[TimeControl "180+1"]
[Date "2023.10.31"]
[WhiteClock "0:01:31"]
[BlackClock "0:00:00"]
[Board "22"]

1. e4 {[%clk 0:03:00]}  g6 {[%clk 0:02:59]} 2. Bc4 {[%clk 0:02:56]}  Bg7 {[%clk 0:02:57]} 3. Qf3 {[%clk 0:02:57]}  e6 {[%clk 0:02:56]} 4. d3 {[%clk 0:02:57]}  Ne7 {[%clk 0:02:51]} 5. Bb3 {[%clk 0:02:56]}  Nbc6 {[%clk 0:02:44]} 6. c3 {[%clk 0:02:56]}  d5 {[%clk 0:02:44]} 7. Qe2 {[%clk 0:02:50]}  dxe4 {[%clk 0:02:37]} 8. dxe4 {[%clk 0:02:50]}  a5 {[%clk 0:02:25]} 9. a4 {[%clk 0:02:49]}  Ne5 {[%clk 0:02:22]} 10. Bc2 {[%clk 0:02:47]}  b6 {[%clk 0:02:21]} 11. Na3 {[%clk 0:02:20]}  Ba6 {[%clk 0:02:20]} 12. c4 {[%clk 0:02:21]}  N7c6 {[%clk 0:02:19]} 13. Be3 {[%clk 0:02:21]}  Nd4 {[%clk 0:02:16]} 14. Qd1 {[%clk 0:02:16]}  Nxc4 {[%clk 0:02:08]} 15. Nxc4 {[%clk 0:02:13]}  Bxc4 {[%clk 0:02:07]} 16. Ra3 {[%clk 0:02:13]}  O-O {[%clk 0:01:59]} 17. Bb1 {[%clk 0:02:13]}  Nc6 {[%clk 0:01:55]} 18. Qc1 {[%clk 0:02:13]}  b5 {[%clk 0:01:46]} 19. axb5 {[%clk 0:02:11]}  Bxb5 {[%clk 0:01:44]} 20. h4 {[%clk 0:02:11]}  Nb4 {[%clk 0:01:34]} 21. h5 {[%clk 0:02:10]}  Bd3 {[%clk 0:01:28]} 22. hxg6 {[%clk 0:02:08]}  fxg6 {[%clk 0:01:27]} 23. Ne2 {[%clk 0:02:06]}  Rb8 {[%clk 0:01:14]} 24. Bh6 {[%clk 0:02:05]}  Bxb2 {[%clk 0:01:09]} 25. Qxb2 {[%clk 0:01:59]}  Nc2+ {[%clk 0:01:08]} 26. Qxc2 {[%clk 0:01:59]}  Bxc2 {[%clk 0:00:50]} 27. Bxc2 {[%clk 0:02:00]}  Rb2 {[%clk 0:00:30]} 28. Rc3 {[%clk 0:01:59]}  Re8 {[%clk 0:00:14]} 29. O-O {[%clk 0:01:59]}  Qf6 {[%clk 0:00:14]} 30. Rxc7 {[%clk 0:01:57]}  g5 {[%clk 0:00:13]} 31. Bg7 {[%clk 0:01:58]}  Qxg7 {[%clk 0:00:13]} 32. Rxg7+ {[%clk 0:01:57]}  Kxg7 {[%clk 0:00:13]} 33. Nd4 {[%clk 0:01:55]}  a4 {[%clk 0:00:10]} 34. Bxa4 {[%clk 0:01:54]}  Ra8 {[%clk 0:00:10]} 35. Nxe6+ {[%clk 0:01:51]}  Kf6 {[%clk 0:00:10]} 36. Bc6 {[%clk 0:01:52]}  Raa2 {[%clk 0:00:09]} 37. Bd5 {[%clk 0:01:51]}  Ra3 {[%clk 0:00:09]} 38. f4 {[%clk 0:01:40]}  gxf4 {[%clk 0:00:09]} 39. Rxf4+ {[%clk 0:01:40]}  Ke5 {[%clk 0:00:09]} 40. Rf5+ {[%clk 0:01:41]}  Kd6 {[%clk 0:00:09]} 41. Nf4 {[%clk 0:01:42]}  Ra1+ {[%clk 0:00:08]} 42. Kh2 {[%clk 0:01:42]}  Rf1 {[%clk 0:00:08]} 43. Rf6+ {[%clk 0:01:42]}  Ke7 {[%clk 0:00:07]} 44. Rf7+ {[%clk 0:01:41]}  Ke8 {[%clk 0:00:07]} 45. Kg3 {[%clk 0:01:36]}  Rbf2 {[%clk 0:00:06]} 46. Rf5 {[%clk 0:01:34]}  h5 {[%clk 0:00:05]} 47. Nxh5 {[%clk 0:01:33]}  Rxf5 {[%clk 0:00:04]} 48. Ng7+ {[%clk 0:01:33]}  Ke7 {[%clk 0:00:04]} 49. Nxf5+ {[%clk 0:01:34]}  Kf6 {[%clk 0:00:04]} 50. Ne3 {[%clk 0:01:35]}  Re1 {[%clk 0:00:04]} 51. Ng4+ {[%clk 0:01:35]}  Kg5 {[%clk 0:00:04]} 52. Nh2 {[%clk 0:01:33]}  Rd1 {[%clk 0:00:04]} 53. Nf3+ {[%clk 0:01:34]}  Kf6 {[%clk 0:00:04]} 54. Kf4 {[%clk 0:01:35]}  Ra1 {[%clk 0:00:03]} 55. g4 {[%clk 0:01:35]}  Ra5 {[%clk 0:00:03]} 56. g5+ {[%clk 0:01:36]}  Kg7 {[%clk 0:00:03]} 57. Be6 {[%clk 0:01:37]}  Ra6 {[%clk 0:00:02]} 58. Bf5 {[%clk 0:01:37]}  Ra4 {[%clk 0:00:02]} 59. g6 {[%clk 0:01:38]}  Ra6 {[%clk 0:00:02]} 60. Kg5 {[%clk 0:01:38]}  Ra3 {[%clk 0:00:02]} 61. Ne5 {[%clk 0:01:38]}  Rg3+ {[%clk 0:00:02]} 62. Kf4 {[%clk 0:01:36]}  Rg1 {[%clk 0:00:02]} 63. Nd7 {[%clk 0:01:31]}  Rf1+ {[%clk 0:00:01]} 64. Ke5 {[%clk 0:01:31]}  Rd1 {[%clk 0:00:01]} 65. Nc5 {[%clk 0:01:32]}  Rc1 {[%clk 0:00:01]} 66. Ne6+ {[%clk 0:01:32]}  Kg8 {[%clk 0:00:01]} 67. Kf6 {[%clk 0:01:33]}  Ra1 {[%clk 0:00:00]} 68. Ng5 {[%clk 0:01:31]} 1-0


[Site "https://www.chess.com"]

[Event "Titled Tuesday Blitz October 31 Early 2023"]
[White "Mndapoetzz04"]
[Black "Svane, Frederik"]
[BlackFideId "12923044"]
[WhiteElo "2723"]
[BlackElo "2874"]
[Result "0-1"]
[Round "8"]
[TimeControl "180+1"]
[Date "2023.10.31"]
[WhiteClock "0:00:31"]
[BlackClock "0:01:31"]
[Board "23"]

1. d4 {[%clk 0:02:56]}  g6 {[%clk 0:03:00]} 2. Bf4 {[%clk 0:02:56]}  d6 {[%clk 0:03:01]} 3. e3 {[%clk 0:02:57]}  Nd7 {[%clk 0:03:01]} 4. Nf3 {[%clk 0:02:57]}  Bg7 {[%clk 0:03:01]} 5. h3 {[%clk 0:02:58]}  e5 {[%clk 0:03:02]} 6. Bh2 {[%clk 0:02:58]}  Qe7 {[%clk 0:03:02]} 7. Be2 {[%clk 0:02:59]}  f5 {[%clk 0:03:03]} 8. O-O {[%clk 0:02:59]}  Ngf6 {[%clk 0:03:04]} 9. c4 {[%clk 0:03:00]}  O-O {[%clk 0:03:04]} 10. Nc3 {[%clk 0:03:00]}  Kh8 {[%clk 0:03:03]} 11. Rc1 {[%clk 0:03:00]}  c6 {[%clk 0:03:02]} 12. b4 {[%clk 0:02:55]}  e4 {[%clk 0:02:42]} 13. Nd2 {[%clk 0:02:53]}  g5 {[%clk 0:02:43]} 14. c5 {[%clk 0:02:53]}  d5 {[%clk 0:02:40]} 15. Bd6 {[%clk 0:02:53]}  Qe8 {[%clk 0:02:37]} 16. Bxf8 {[%clk 0:02:53]}  Nxf8 {[%clk 0:02:38]} 17. b5 {[%clk 0:02:53]}  f4 {[%clk 0:02:37]} 18. bxc6 {[%clk 0:02:17]}  bxc6 {[%clk 0:02:38]} 19. Re1 {[%clk 0:02:07]}  Ng6 {[%clk 0:02:36]} 20. Bh5 {[%clk 0:02:05]}  f3 {[%clk 0:02:34]} 21. Bxg6 {[%clk 0:02:02]}  Qxg6 {[%clk 0:02:35]} 22. Nxf3 {[%clk 0:01:29]}  exf3 {[%clk 0:02:35]} 23. Qxf3 {[%clk 0:01:30]}  Bf5 {[%clk 0:02:29]} 24. Ne2 {[%clk 0:01:23]}  Rf8 {[%clk 0:02:19]} 25. Ng3 {[%clk 0:01:24]}  Bc8 {[%clk 0:02:16]} 26. Rb1 {[%clk 0:01:19]}  h5 {[%clk 0:02:13]} 27. Rb8 {[%clk 0:01:11]}  Kh7 {[%clk 0:02:13]} 28. Qd1 {[%clk 0:00:59]}  h4 {[%clk 0:02:03]} 29. Nf1 {[%clk 0:00:56]}  g4 {[%clk 0:01:56]} 30. hxg4 {[%clk 0:00:38]}  Bxg4 {[%clk 0:01:53]} 31. Qb1 {[%clk 0:00:38]}  Bf5 {[%clk 0:01:46]} 32. Qb7 {[%clk 0:00:37]}  Be4 {[%clk 0:01:46]} 33. g3 {[%clk 0:00:35]}  Qg4 {[%clk 0:01:32]} 34. Nh2 {[%clk 0:00:31]}  Qh3 {[%clk 0:01:31]} 0-1


[Site "https://www.chess.com"]

[Event "Titled Tuesday Blitz October 31 Early 2023"]
[White "NelsonLinda"]
[Black "Pakleza, Zbigniew"]
[BlackFideId "1119290"]
[WhiteElo "2628"]
[BlackElo "2818"]
[Result "0-1"]
[Round "8"]
[TimeControl "180+1"]
[Date "2023.10.31"]
[WhiteClock "0:00:34"]
[BlackClock "0:00:07"]
[Board "27"]

1. b3 {[%clk 0:03:00]}  d5 {[%clk 0:02:59]} 2. Bb2 {[%clk 0:02:59]}  Nf6 {[%clk 0:03:00]} 3. Nf3 {[%clk 0:02:56]}  Bf5 {[%clk 0:03:00]} 4. d3 {[%clk 0:02:56]}  h6 {[%clk 0:03:00]} 5. Nbd2 {[%clk 0:02:56]}  e6 {[%clk 0:03:00]} 6. g3 {[%clk 0:02:56]}  Be7 {[%clk 0:03:00]} 7. Bg2 {[%clk 0:02:57]}  O-O {[%clk 0:03:01]} 8. O-O {[%clk 0:02:57]}  Bh7 {[%clk 0:03:00]} 9. Re1 {[%clk 0:02:52]}  c6 {[%clk 0:03:00]} 10. e4 {[%clk 0:02:52]}  a5 {[%clk 0:03:00]} 11. a3 {[%clk 0:02:52]}  Nbd7 {[%clk 0:02:59]} 12. Qe2 {[%clk 0:02:52]}  Qb6 {[%clk 0:02:58]} 13. h4 {[%clk 0:02:19]}  Rfd8 {[%clk 0:02:54]} 14. Rab1 {[%clk 0:02:09]}  Rac8 {[%clk 0:02:52]} 15. Nh2 {[%clk 0:02:08]}  Bc5 {[%clk 0:02:46]} 16. e5 {[%clk 0:01:56]}  Ne8 {[%clk 0:02:43]} 17. Ndf3 {[%clk 0:01:56]}  Bf8 {[%clk 0:02:31]} 18. h5 {[%clk 0:01:55]}  c5 {[%clk 0:02:29]} 19. Nd2 {[%clk 0:01:43]}  Qa6 {[%clk 0:02:24]} 20. Qg4 {[%clk 0:01:42]}  b5 {[%clk 0:02:16]} 21. Ndf3 {[%clk 0:01:33]}  c4 {[%clk 0:02:07]} 22. Bf1 {[%clk 0:01:32]}  cxb3 {[%clk 0:01:59]} 23. cxb3 {[%clk 0:01:33]}  Nc5 {[%clk 0:01:54]} 24. Bc1 {[%clk 0:01:26]}  Nxd3 {[%clk 0:01:43]} 25. Bxd3 {[%clk 0:01:26]}  Bxd3 {[%clk 0:01:44]} 26. Nd4 {[%clk 0:01:25]}  Bxb1 {[%clk 0:01:38]} 27. Bxh6 {[%clk 0:01:22]}  Be4 {[%clk 0:01:19]} 28. Be3 {[%clk 0:01:20]}  b4 {[%clk 0:01:13]} 29. a4 {[%clk 0:01:19]}  Qd3 {[%clk 0:01:09]} 30. Qg5 {[%clk 0:01:17]}  Bf5 {[%clk 0:00:52]} 31. Nhf3 {[%clk 0:00:57]}  Rd7 {[%clk 0:00:49]} 32. Nh4 {[%clk 0:00:56]}  Be7 {[%clk 0:00:44]} 33. Qf4 {[%clk 0:00:53]}  Qe4 {[%clk 0:00:34]} 34. Nhxf5 {[%clk 0:00:49]}  exf5 {[%clk 0:00:34]} 35. e6 {[%clk 0:00:48]}  fxe6 {[%clk 0:00:24]} 36. Nxe6 {[%clk 0:00:43]}  Qxe6 {[%clk 0:00:23]} 37. Bd2 {[%clk 0:00:43]}  Qf7 {[%clk 0:00:21]} 38. h6 {[%clk 0:00:42]}  Bf6 {[%clk 0:00:15]} 39. Qxf5 {[%clk 0:00:40]}  Nd6 {[%clk 0:00:12]} 40. h7+ {[%clk 0:00:40]}  Kh8 {[%clk 0:00:11]} 41. Qg4 {[%clk 0:00:40]}  Re8 {[%clk 0:00:09]} 42. Rc1 {[%clk 0:00:39]}  Ne4 {[%clk 0:00:08]} 43. Be3 {[%clk 0:00:40]}  d4 {[%clk 0:00:07]} 44. Bf4 {[%clk 0:00:39]}  d3 {[%clk 0:00:07]} 45. f3 {[%clk 0:00:34]}  Nc3 {[%clk 0:00:05]} 46. Bd2 {[%clk 0:00:34]}  Ne2+ {[%clk 0:00:05]} 47. Kg2 {[%clk 0:00:35]}  Nxc1 {[%clk 0:00:06]} 48. Bxc1 {[%clk 0:00:36]}  d2 {[%clk 0:00:06]} 49. Bxd2 {[%clk 0:00:34]}  Rxd2+ {[%clk 0:00:07]} 0-1


[Site "https://www.chess.com"]

[Event "Titled Tuesday Blitz October 31 Early 2023"]
[White "Chinguun, Sumiya"]
[Black "Hayrapetyan, Hovik"]
[WhiteFideId "4902572"]
[BlackFideId "13302639"]
[WhiteElo "2654"]
[BlackElo "2789"]
[Result "1-0"]
[Round "8"]
[TimeControl "180+1"]
[Date "2023.10.31"]
[WhiteClock "0:00:51"]
[BlackClock "0:00:07"]
[Board "28"]

1. e4 {[%clk 0:03:00]}  c5 {[%clk 0:02:59]} 2. Nc3 {[%clk 0:03:00]}  d6 {[%clk 0:02:59]} 3. f4 {[%clk 0:02:59]}  g6 {[%clk 0:02:59]} 4. Nf3 {[%clk 0:02:59]}  Bg7 {[%clk 0:02:59]} 5. Bc4 {[%clk 0:03:00]}  Nc6 {[%clk 0:02:58]} 6. O-O {[%clk 0:03:00]}  e6 {[%clk 0:02:59]} 7. d3 {[%clk 0:02:59]}  Nge7 {[%clk 0:02:59]} 8. Qe1 {[%clk 0:02:59]}  O-O {[%clk 0:02:56]} 9. e5 {[%clk 0:02:47]}  dxe5 {[%clk 0:02:42]} 10. fxe5 {[%clk 0:02:43]}  Nxe5 {[%clk 0:02:42]} 11. Nxe5 {[%clk 0:02:38]}  Qd4+ {[%clk 0:02:41]} 12. Be3 {[%clk 0:02:37]}  Qxe5 {[%clk 0:02:41]} 13. Ne4 {[%clk 0:02:35]}  b6 {[%clk 0:02:36]} 14. Bg5 {[%clk 0:02:29]}  Nf5 {[%clk 0:02:29]} 15. c3 {[%clk 0:02:21]}  Bb7 {[%clk 0:02:27]} 16. Bf4 {[%clk 0:02:20]}  Qxf4 {[%clk 0:02:01]} 17. Rxf4 {[%clk 0:02:20]}  Rad8 {[%clk 0:01:59]} 18. g4 {[%clk 0:02:16]}  Nd6 {[%clk 0:01:48]} 19. Nf6+ {[%clk 0:02:15]}  Bxf6 {[%clk 0:01:47]} 20. Rxf6 {[%clk 0:02:15]}  Nxc4 {[%clk 0:01:45]} 21. dxc4 {[%clk 0:02:14]}  Kg7 {[%clk 0:01:40]} 22. Rf2 {[%clk 0:02:12]}  Rde8 {[%clk 0:01:29]} 23. Rd1 {[%clk 0:02:10]}  Re7 {[%clk 0:01:28]} 24. Qe5+ {[%clk 0:02:09]}  f6 {[%clk 0:01:28]} 25. Qd6 {[%clk 0:02:07]}  Rff7 {[%clk 0:01:25]} 26. g5 {[%clk 0:02:07]}  fxg5 {[%clk 0:01:20]} 27. Qe5+ {[%clk 0:02:06]}  Kh6 {[%clk 0:01:20]} 28. Rd3 {[%clk 0:02:04]}  g4 {[%clk 0:01:14]} 29. Rg3 {[%clk 0:01:56]}  Bf3 {[%clk 0:01:13]} 30. h3 {[%clk 0:01:52]}  Rd7 {[%clk 0:01:13]} 31. hxg4 {[%clk 0:01:42]}  Rd1+ {[%clk 0:01:12]} 32. Rf1 {[%clk 0:01:42]}  Rxf1+ {[%clk 0:01:12]} 33. Kxf1 {[%clk 0:01:42]}  Bxg4+ {[%clk 0:01:11]} 34. Kg2 {[%clk 0:01:37]}  Bf5 {[%clk 0:01:11]} 35. Re3 {[%clk 0:01:27]}  Rd7 {[%clk 0:01:09]} 36. Re1 {[%clk 0:01:24]}  Rd2+ {[%clk 0:01:08]} 37. Kf3 {[%clk 0:01:23]}  Rd3+ {[%clk 0:01:07]} 38. Ke2 {[%clk 0:01:22]}  Rh3 {[%clk 0:01:06]} 39. Rg1 {[%clk 0:01:20]}  Rh4 {[%clk 0:00:59]} 40. Qf6 {[%clk 0:01:08]}  Rh2+ {[%clk 0:00:56]} 41. Kd1 {[%clk 0:01:06]}  Bc2+ {[%clk 0:00:48]} 42. Ke1 {[%clk 0:01:02]}  Bf5 {[%clk 0:00:49]} 43. Qg5+ {[%clk 0:00:56]}  Kg7 {[%clk 0:00:49]} 44. Rg2 {[%clk 0:00:57]}  Rh1+ {[%clk 0:00:49]} 45. Kd2 {[%clk 0:00:57]}  Rh3 {[%clk 0:00:39]} 46. Qf4 {[%clk 0:00:55]}  Rd3+ {[%clk 0:00:34]} 47. Ke2 {[%clk 0:00:54]}  Rd7 {[%clk 0:00:27]} 48. Qe5+ {[%clk 0:00:55]}  Kf7 {[%clk 0:00:27]} 49. Ke1 {[%clk 0:00:55]}  h5 {[%clk 0:00:22]} 50. Rd2 {[%clk 0:00:55]}  Rxd2 {[%clk 0:00:16]} 51. Kxd2 {[%clk 0:00:55]}  g5 {[%clk 0:00:15]} 52. Qh8 {[%clk 0:00:51]}  Bg6 {[%clk 0:00:15]} 53. Ke3 {[%clk 0:00:50]}  a6 {[%clk 0:00:14]} 54. Qe5 {[%clk 0:00:50]}  g4 {[%clk 0:00:13]} 55. Kf4 {[%clk 0:00:51]}  Bb1 {[%clk 0:00:12]} 56. Kg5 {[%clk 0:00:50]}  Bf5 {[%clk 0:00:12]} 57. Qc7+ {[%clk 0:00:50]}  Kf8 {[%clk 0:00:07]} 58. Kf6 {[%clk 0:00:51]}  Kg8 {[%clk 0:00:07]} 59. Qg7# {[%clk 0:00:51]} 1-0


[Site "https://www.chess.com"]

[Event "Titled Tuesday Blitz October 31 Early 2023"]
[White "Saydaliev, Saidakbar"]
[Black "Tikhonov, Viacheslav"]
[WhiteFideId "14203693"]
[BlackFideId "44196407"]
[WhiteElo "2783"]
[BlackElo "2512"]
[Result "1-0"]
[Round "8"]
[TimeControl "180+1"]
[Date "2023.10.31"]
[WhiteClock "0:00:22"]
[BlackClock "0:00:00"]
[Board "29"]

1. d4 {[%clk 0:02:58]}  Nf6 {[%clk 0:02:59]} 2. c4 {[%clk 0:02:58]}  g6 {[%clk 0:03:00]} 3. Nf3 {[%clk 0:02:57]}  Bg7 {[%clk 0:03:00]} 4. g3 {[%clk 0:02:58]}  O-O {[%clk 0:03:00]} 5. Bg2 {[%clk 0:02:58]}  c6 {[%clk 0:03:01]} 6. Nc3 {[%clk 0:02:59]}  d5 {[%clk 0:03:01]} 7. O-O {[%clk 0:02:59]}  dxc4 {[%clk 0:03:02]} 8. a4 {[%clk 0:02:59]}  a5 {[%clk 0:03:01]} 9. Ne5 {[%clk 0:02:58]}  Ng4 {[%clk 0:02:54]} 10. f4 {[%clk 0:02:12]}  Qb6 {[%clk 0:02:07]} 11. e3 {[%clk 0:02:09]}  Nxe5 {[%clk 0:02:03]} 12. fxe5 {[%clk 0:02:10]}  f6 {[%clk 0:01:56]} 13. exf6 {[%clk 0:01:58]}  exf6 {[%clk 0:01:57]} 14. Ne4 {[%clk 0:01:23]}  Na6 {[%clk 0:01:40]} 15. Nd6 {[%clk 0:01:05]}  Be6 {[%clk 0:01:37]} 16. Qe2 {[%clk 0:01:05]}  Qb4 {[%clk 0:01:20]} 17. Ne4 {[%clk 0:01:05]}  f5 {[%clk 0:01:11]} 18. Bd2 {[%clk 0:00:47]}  Qb3 {[%clk 0:00:57]} 19. Ng5 {[%clk 0:00:43]}  Bd5 {[%clk 0:00:45]} 20. Bc3 {[%clk 0:00:44]}  Rae8 {[%clk 0:00:39]} 21. e4 {[%clk 0:00:31]}  c5 {[%clk 0:00:24]} 22. e5 {[%clk 0:00:28]}  Bxg2 {[%clk 0:00:24]} 23. Qxg2 {[%clk 0:00:29]}  h6 {[%clk 0:00:18]} 24. Qd5+ {[%clk 0:00:28]}  Kh8 {[%clk 0:00:17]} 25. Nf7+ {[%clk 0:00:29]}  Kh7 {[%clk 0:00:18]} 26. Nd6 {[%clk 0:00:26]}  Rd8 {[%clk 0:00:11]} 27. dxc5 {[%clk 0:00:25]}  Nc7 {[%clk 0:00:05]} 28. Qd2 {[%clk 0:00:20]}  Ne6 {[%clk 0:00:03]} 29. Ra3 {[%clk 0:00:21]}  Nxc5 {[%clk 0:00:01]} 30. Rxb3 {[%clk 0:00:21]}  Nxb3 {[%clk 0:00:02]} 31. Qd5 {[%clk 0:00:22]}  Rd7 {[%clk 0:00:00]} 32. Qxc4 {[%clk 0:00:22]} 1-0


[Site "https://www.chess.com"]

[Event "Titled Tuesday Blitz October 31 Early 2023"]
[White "Baskakov, Egor"]
[Black "Prestia, Paris"]
[WhiteFideId "24197866"]
[BlackFideId "30925959"]
[WhiteElo "2913"]
[BlackElo "2626"]
[Result "1/2-1/2"]
[Round "8"]
[TimeControl "180+1"]
[Date "2023.10.31"]
[WhiteClock "0:01:13"]
[BlackClock "0:01:05"]
[Board "30"]

1. e4 {[%clk 0:03:00]}  c5 {[%clk 0:03:00]} 2. Nf3 {[%clk 0:03:01]}  d6 {[%clk 0:03:00]} 3. d4 {[%clk 0:03:01]}  cxd4 {[%clk 0:03:01]} 4. Nxd4 {[%clk 0:03:01]}  Nf6 {[%clk 0:03:02]} 5. Nc3 {[%clk 0:03:02]}  g6 {[%clk 0:03:03]} 6. g3 {[%clk 0:03:02]}  Bg7 {[%clk 0:03:03]} 7. Bg2 {[%clk 0:03:02]}  O-O {[%clk 0:03:04]} 8. h3 {[%clk 0:03:03]}  Qc7 {[%clk 0:02:56]} 9. O-O {[%clk 0:03:02]}  Nc6 {[%clk 0:02:56]} 10. Nde2 {[%clk 0:03:02]}  Rb8 {[%clk 0:02:54]} 11. a4 {[%clk 0:03:02]}  a6 {[%clk 0:02:54]} 12. Nd5 {[%clk 0:03:03]}  Nxd5 {[%clk 0:02:54]} 13. exd5 {[%clk 0:03:03]}  Ne5 {[%clk 0:02:55]} 14. Ra2 {[%clk 0:03:03]}  b5 {[%clk 0:02:55]} 15. axb5 {[%clk 0:03:03]}  axb5 {[%clk 0:02:56]} 16. b3 {[%clk 0:03:04]}  Bb7 {[%clk 0:02:33]} 17. Nd4 {[%clk 0:03:04]}  b4 {[%clk 0:02:24]} 18. Be3 {[%clk 0:03:00]}  Ra8 {[%clk 0:02:23]} 19. Rxa8 {[%clk 0:02:59]}  Rxa8 {[%clk 0:02:24]} 20. Qd2 {[%clk 0:02:55]}  Qc3 {[%clk 0:02:15]} 21. Qxc3 {[%clk 0:02:49]}  bxc3 {[%clk 0:02:16]} 22. f4 {[%clk 0:02:31]}  Nd7 {[%clk 0:02:16]} 23. Nc6 {[%clk 0:02:32]}  Kf8 {[%clk 0:02:10]} 24. f5 {[%clk 0:01:58]}  Ra2 {[%clk 0:01:45]} 25. Rf2 {[%clk 0:01:58]}  gxf5 {[%clk 0:01:19]} 26. Bf1 {[%clk 0:01:37]}  Ne5 {[%clk 0:01:19]} 27. Bg2 {[%clk 0:01:32]}  Ra6 {[%clk 0:01:11]} 28. Nd4 {[%clk 0:01:27]}  Ra5 {[%clk 0:01:04]} 29. Nc6 {[%clk 0:01:12]}  Ra6 {[%clk 0:01:04]} 30. Nd4 {[%clk 0:01:13]}  Ra5 {[%clk 0:01:04]} 31. Nc6 {[%clk 0:01:13]}  Ra6 {[%clk 0:01:05]} 1/2-1/2


[Site "https://www.chess.com"]

[Event "Titled Tuesday Blitz October 31 Early 2023"]
[White "Bharath Subramaniyam H"]
[Black "Harikrishnan.A.Ra"]
[WhiteFideId "46634827"]
[BlackFideId "5081483"]
[WhiteElo "2895"]
[BlackElo "2689"]
[Result "1-0"]
[Round "8"]
[TimeControl "180+1"]
[Date "2023.10.31"]
[WhiteClock "0:01:08"]
[BlackClock "0:00:00"]
[Board "31"]

1. e4 {[%clk 0:03:00]}  c6 {[%clk 0:02:58]} 2. d4 {[%clk 0:03:01]}  d5 {[%clk 0:02:58]} 3. e5 {[%clk 0:03:02]}  Bf5 {[%clk 0:02:56]} 4. g4 {[%clk 0:03:02]}  Bd7 {[%clk 0:02:53]} 5. Nc3 {[%clk 0:03:01]}  e6 {[%clk 0:02:53]} 6. Be3 {[%clk 0:03:02]}  h5 {[%clk 0:02:48]} 7. gxh5 {[%clk 0:03:00]}  Nh6 {[%clk 0:02:46]} 8. Nf3 {[%clk 0:02:55]}  Nf5 {[%clk 0:02:45]} 9. Bg5 {[%clk 0:02:52]}  Qb6 {[%clk 0:02:42]} 10. Rb1 {[%clk 0:02:42]}  c5 {[%clk 0:02:28]} 11. Bd3 {[%clk 0:02:40]}  Nxd4 {[%clk 0:02:22]} 12. Nxd4 {[%clk 0:02:39]}  cxd4 {[%clk 0:02:23]} 13. Ne2 {[%clk 0:02:37]}  Nc6 {[%clk 0:02:20]} 14. f4 {[%clk 0:02:37]}  Nb4 {[%clk 0:02:10]} 15. Ng3 {[%clk 0:02:35]}  Nxd3+ {[%clk 0:02:01]} 16. cxd3 {[%clk 0:02:36]}  Qa5+ {[%clk 0:02:00]} 17. Kf2 {[%clk 0:02:36]}  Qxa2 {[%clk 0:01:59]} 18. Qe2 {[%clk 0:02:30]}  Qb3 {[%clk 0:01:40]} 19. Rbc1 {[%clk 0:02:28]}  Qb6 {[%clk 0:01:36]} 20. Rhg1 {[%clk 0:02:05]}  Bb4 {[%clk 0:01:29]} 21. h6 {[%clk 0:02:03]}  gxh6 {[%clk 0:01:25]} 22. Bf6 {[%clk 0:02:02]}  Rg8 {[%clk 0:01:15]} 23. Nh5 {[%clk 0:02:02]}  Rg6 {[%clk 0:01:16]} 24. f5 {[%clk 0:01:30]}  exf5 {[%clk 0:01:08]} 25. Nf4 {[%clk 0:01:31]}  Be6 {[%clk 0:00:18]} 26. Nxg6 {[%clk 0:01:28]}  fxg6 {[%clk 0:00:19]} 27. Rxg6 {[%clk 0:01:28]}  Bf7 {[%clk 0:00:19]} 28. Rg7 {[%clk 0:01:28]}  Bf8 {[%clk 0:00:18]} 29. e6 {[%clk 0:01:11]}  Qxe6 {[%clk 0:00:06]} 30. Qxe6+ {[%clk 0:01:10]}  Bxe6 {[%clk 0:00:07]} 31. Rxb7 {[%clk 0:01:10]}  Bd7 {[%clk 0:00:03]} 32. Re1+ {[%clk 0:01:08]}  Kf7 {[%clk 0:00:00]} 33. Bh4 {[%clk 0:01:08]} 1-0


[Site "https://www.chess.com"]

[Event "Titled Tuesday Blitz October 31 Early 2023"]
[White "Barrientos, Sergio E"]
[Black "Ivic, Velimir"]
[WhiteFideId "4401824"]
[BlackFideId "950122"]
[WhiteElo "2681"]
[BlackElo "2844"]
[Result "1-0"]
[Round "8"]
[TimeControl "180+1"]
[Date "2023.10.31"]
[WhiteClock "0:01:00"]
[BlackClock "0:01:53"]
[Board "33"]

1. d4 {[%clk 0:03:00]}  Nf6 {[%clk 0:02:58]} 2. Bg5 {[%clk 0:02:59]}  g6 {[%clk 0:02:59]} 3. Nd2 {[%clk 0:02:57]}  Bg7 {[%clk 0:02:59]} 4. Ngf3 {[%clk 0:02:55]}  O-O {[%clk 0:02:59]} 5. e4 {[%clk 0:02:55]}  d5 {[%clk 0:02:59]} 6. exd5 {[%clk 0:02:51]}  Nxd5 {[%clk 0:03:00]} 7. Bc4 {[%clk 0:02:49]}  Nb6 {[%clk 0:02:59]} 8. c3 {[%clk 0:02:34]}  N8d7 {[%clk 0:03:00]} 9. Bb3 {[%clk 0:02:32]}  c5 {[%clk 0:02:59]} 10. O-O {[%clk 0:02:28]}  cxd4 {[%clk 0:02:59]} 11. cxd4 {[%clk 0:02:26]}  h6 {[%clk 0:02:59]} 12. Bh4 {[%clk 0:02:25]}  Nf6 {[%clk 0:02:57]} 13. h3 {[%clk 0:02:24]}  Nfd5 {[%clk 0:02:46]} 14. Re1 {[%clk 0:02:23]}  Bf5 {[%clk 0:02:45]} 15. Qe2 {[%clk 0:02:15]}  g5 {[%clk 0:02:42]} 16. Bg3 {[%clk 0:02:13]}  Rc8 {[%clk 0:02:43]} 17. Be5 {[%clk 0:02:11]}  e6 {[%clk 0:02:43]} 18. Nf1 {[%clk 0:02:02]}  Nf4 {[%clk 0:02:41]} 19. Qd2 {[%clk 0:01:51]}  Nd3 {[%clk 0:02:35]} 20. Re3 {[%clk 0:01:36]}  Nxe5 {[%clk 0:02:33]} 21. Nxe5 {[%clk 0:01:36]}  Nd5 {[%clk 0:02:32]} 22. Ree1 {[%clk 0:01:30]}  Nf4 {[%clk 0:02:29]} 23. Ng3 {[%clk 0:01:27]}  Bh7 {[%clk 0:02:26]} 24. Re3 {[%clk 0:01:23]}  Qd6 {[%clk 0:02:21]} 25. Rd1 {[%clk 0:01:15]}  Rfd8 {[%clk 0:02:18]} 26. Ne4 {[%clk 0:01:06]}  Bxe4 {[%clk 0:02:03]} 27. Rxe4 {[%clk 0:01:06]}  Bxe5 {[%clk 0:02:01]} 28. Rxe5 {[%clk 0:01:06]}  Qxd4 {[%clk 0:01:54]} 29. Qxd4 {[%clk 0:01:01]}  Ne2+ {[%clk 0:01:53]} 30. Rxe2 {[%clk 0:01:00]} 1-0


[Site "https://www.chess.com"]